bitfinex/quotes_BTCUSD_20230117
["timestamp","ask_amount","ask_price","bid_price","bid_amount"]
[1673961093537,1.98790184,21201.0,21200.0,0.01665642]
[1673961093791,1.91090184,21201.0,21200.0,0.01565642]
[1673961094046,1.04455184,21201.0,21200.0,0.01665642]
[1673961094304,0.89315184,21201.0,21200.0,0.01665642]
[1673961096619,0.57182084,21201.0,21200.0,0.01665642]
[1673961096887,0.57182084,21201.0,21200.0,0.16361636]
[1673961097669,0.077,21201.0,21200.0,0.4637431]
[1673961097928,0.077,21201.0,21200.0,0.6354411]
[1673961098195,0.077,21201.0,21200.0,0.9354411]
[1673961098467,0.077,21201.0,21200.0,0.6354411]
[1673961098741,0.077,21201.0,21200.0,1.59786505]
[1673961099001,0.077,21201.0,21200.0,2.00339605]
[1673961099255,0.077,21201.0,21200.0,2.72881823]
[1673961100287,0.077,21201.0,21200.0,2.93537841]
[1673961100557,0.07693294,21201.0,21200.0,2.93537841]
[1673961100823,0.8621,21208.0,21200.0,2.65211823]
[1673961101090,0.007,21201.0,21200.0,1.92224929]
[1673961101381,0.00630001,21201.0,21200.0,2.22644855]
[1673961102154,0.20574,21208.0,21201.0,0.1]
[1673961102462,1.08025729,21209.0,21203.0,0.943258]
[1673961102463,1.21940353,21209.0,21203.0,0.943258]
[1673961102681,1.42811568,21209.0,21204.0,0.49072595]
[1673961102947,1.42811568,21209.0,21205.0,0.66230995]
[1673961103201,0.355331,21208.0,21205.0,0.66230995]
[1673961103458,0.204068,21207.0,21205.0,0.471584]
[1673961103990,1.08914353,21209.0,21205.0,0.471584]
[1673961104022,0.87999729,21209.0,21205.0,0.471584]
[1673961104269,0.38414624,21208.0,21205.0,0.002]
[1673961104523,0.321331,21207.0,21203.0,0.04871211]
[1673961104781,0.321331,21207.0,21205.0,0.002]
[1673961104782,0.204068,21206.0,21205.0,0.002]
[1673961105067,0.204068,21206.0,21203.0,0.20311724]
[1673961105324,0.07,21207.0,21205.0,0.002]
[1673961105575,0.321331,21206.0,21205.0,0.002]
[1673961106356,0.321331,21206.0,21203.0,0.04871211]
[1673961106605,0.204068,21205.0,21203.0,0.05071211]
[1673961106858,0.321331,21204.0,21203.0,0.05071211]
[1673961107112,1.20723718,21207.0,21202.0,0.71321819]
[1673961107381,0.53047724,21206.0,21205.0,0.002]
[1673961107641,0.53047724,21206.0,21200.0,0.01565642]
[1673961107642,1.2694388,21206.0,21200.0,0.01565642]
[1673961107889,0.0757,21203.0,21200.0,0.01565642]
[1673961108164,0.321331,21202.0,21200.0,0.01565642]
[1673961108447,0.204068,21201.0,21200.0,0.01565642]
[1673961110498,0.204068,21201.0,21200.0,0.01578316]
[1673961110752,1.30793459,21201.0,21200.0,0.01565642]
[1673961111012,1.21893459,21201.0,21200.0,0.01565642]
[1673961111263,1.30693459,21201.0,21200.0,0.01565642]
[1673961111573,1.21893459,21201.0,21200.0,0.01565642]
[1673961112538,0.293068,21201.0,21200.0,0.01565642]
[1673961112787,0.204068,21201.0,21200.0,0.01565642]
[1673961113045,0.204068,21201.0,21199.0,0.49092868]
[1673961113046,0.089,21201.0,21199.0,0.49092868]
[1673961113552,0.089,21201.0,21200.0,0.00012674]
[1673961113803,1.586948,21204.0,21199.0,0.49092868]
[1673961113804,1.586966,21204.0,21199.0,0.49092868]
[1673961114070,0.089,21201.0,21200.0,0.943396]
[1673961114310,0.4304,21204.0,21200.0,0.471698]
[1673961114563,1.43989927,21205.0,21201.0,0.09626067]
[1673961114825,1.57976463,21205.0,21201.0,0.28698662]
[1673961115093,0.321331,21204.0,21201.0,0.28698662]
[1673961115386,0.204068,21203.0,21202.0,0.08063814]
[1673961116353,0.98259127,21205.0,21202.0,0.08063814]
[1673961116605,0.089,21203.0,21201.0,0.471671]
[1673961117361,0.89259127,21205.0,21201.0,0.471671]
[1673961117616,0.61140336,21208.0,21202.0,0.66166603]
[1673961117880,0.44485037,21207.0,21203.0,1.13396395]
[1673961118121,0.09,21205.0,21203.0,1.13396395]
[1673961118375,0.09,21205.0,21203.0,0.943238]
[1673961118634,0.09,21205.0,21204.0,0.09081838]
[1673961118888,0.09,21205.0,21204.0,0.56242738]
[1673961119189,0.44485037,21207.0,21204.0,0.56242738]
[1673961119387,0.081,21205.0,21204.0,0.75315333]
[1673961119641,0.44485037,21207.0,21204.0,0.56242738]
[1673961119909,0.08,21205.0,21204.0,0.944218]
[1673961120166,1.54860341,21209.0,21204.0,1.243218]
[1673961120167,0.9879744,21209.0,21204.0,1.243218]
[1673961120448,0.081,21207.0,21205.0,0.49072595]
[1673961120672,0.081,21207.0,21205.0,1.24315]
[1673961121440,0.081,21207.0,21206.0,0.22888676]
[1673961121737,0.081,21207.0,21206.0,1.00045076]
[1673961121953,0.00392505,21209.0,21206.0,1.00045076]
[1673961122213,0.00392505,21209.0,21207.0,0.3]
[1673961122214,0.08492505,21209.0,21207.0,0.3]
[1673961122467,0.08492505,21209.0,21208.0,1.01874]
[1673961122468,0.00382045,21209.0,21208.0,1.01874]
[1673961122732,0.00382045,21209.0,21208.0,1.32724]
[1673961123230,0.08482045,21209.0,21208.0,1.32724]
[1673961123486,0.00382045,21209.0,21208.0,1.01874]
[1673961123738,0.07782045,21209.0,21208.0,0.94504]
[1673961123990,0.07782045,21209.0,21208.0,0.47352]
[1673961124509,0.07782045,21209.0,21208.0,0.77352]
[1673961124766,0.07782045,21209.0,21208.0,0.78202]
[1673961125285,0.00382045,21209.0,21208.0,0.78002]
[1673961125606,0.00882045,21209.0,21208.0,0.79702]
[1673961126334,0.00382045,21209.0,21208.0,0.78002]
[1673961126612,0.01182045,21209.0,21208.0,0.79702]
[1673961126941,0.01182045,21209.0,21208.0,1.39139742]
[1673961127180,0.01182045,21209.0,21208.0,1.71272842]
[1673961127425,0.01182045,21209.0,21208.0,1.86291742]
[1673961127686,0.01182045,21209.0,21208.0,2.61640216]
[1673961128185,0.01182045,21209.0,21208.0,2.69210216]
[1673961128915,0.00834531,21209.0,21208.0,2.83322141]
[1673961129659,0.00834531,21209.0,21208.0,2.69210216]
[1673961132160,0.00834531,21209.0,21208.0,2.64500216]
[1673961132398,0.00834531,21209.0,21208.0,3.12220385]
[1673961133413,0.00834531,21209.0,21208.0,3.2633231]
[1673961133920,0.00322715,21209.0,21208.0,3.85675877]
[1673961134411,0.03288725,21210.0,21208.0,4.40848226]
[1673961134660,0.03288725,21210.0,21209.0,2.67922887]
[1673961134898,0.03288725,21210.0,21209.0,3.34125731]
[1673961135399,0.03288725,21210.0,21209.0,2.91849489]
[1673961135649,0.03288725,21210.0,21209.0,1.723125]
[1673961135886,0.03288725,21210.0,21209.0,1.423125]
[1673961136139,0.03288725,21210.0,21209.0,1.615125]
[1673961136398,0.03288725,21210.0,21209.0,1.9535932]
[1673961136658,0.03288725,21210.0,21209.0,2.09399179]
[1673961136897,0.03288725,21210.0,21209.0,2.78191784]
[1673961137155,0.03288725,21210.0,21209.0,3.10989685]
[1673961137404,0.03288725,21210.0,21209.0,3.17391784]
[1673961137660,0.03288725,21210.0,21209.0,2.87119348]
[1673961137898,0.03288725,21210.0,21209.0,2.96319348]
[1673961138149,0.03288725,21210.0,21209.0,2.39232669]
[1673961138436,0.03288725,21210.0,21209.0,2.82279489]
[1673961138686,0.03288725,21210.0,21209.0,2.39232669]
[1673961138925,0.03288725,21210.0,21209.0,2.82279489]
[1673961140643,0.03288725,21210.0,21209.0,2.39232669]
[1673961140909,0.03288725,21210.0,21209.0,2.82279489]
[1673961141399,0.03288725,21210.0,21209.0,2.8230534]
[1673961142900,0.03288725,21210.0,21209.0,3.1106534]
[1673961143865,0.00659772,21210.0,21209.0,3.1106534]
[1673961144357,0.00659772,21210.0,21209.0,3.25105199]
[1673961144598,0.00659772,21210.0,21209.0,3.1106534]
[1673961144847,0.00659772,21210.0,21209.0,3.25105199]
[1673961145333,0.00659772,21210.0,21209.0,3.1106534]
[1673961147860,0.00392519,21214.0,21213.0,2.44435501]
[1673961148889,0.00265569,21215.0,21214.0,0.1]
[1673961149146,0.00265569,21215.0,21214.0,1.448303]
[1673961149393,0.00265569,21215.0,21214.0,1.748303]
[1673961149921,0.00265569,21215.0,21214.0,0.951272]
[1673961150403,0.00265569,21215.0,21214.0,1.044272]
[1673961150651,0.11321569,21215.0,21214.0,1.044272]
[1673961150892,0.00265569,21215.0,21214.0,1.044272]
[1673961151628,0.11169569,21215.0,21214.0,0.093]
[1673961151881,0.84493134,21215.0,21214.0,0.093]
[1673961152381,0.92063134,21215.0,21214.0,0.093]
[1673961153125,0.92063134,21215.0,21211.0,0.471439]
[1673961153412,0.279768,21214.0,21211.0,0.57115516]
[1673961153652,0.321331,21213.0,21211.0,0.57115516]
[1673961153897,0.204068,21212.0,21211.0,0.57115516]
[1673961154390,0.204068,21212.0,21211.0,0.87965516]
[1673961154665,0.89576034,21215.0,21211.0,0.87965516]
[1673961154900,0.007,21213.0,21212.0,0.10132318]
[1673961155153,0.321331,21213.0,21212.0,0.10132318]
[1673961155426,0.321331,21213.0,21212.0,0.57275418]
[1673961155690,0.321331,21213.0,21212.0,0.87275418]
[1673961156005,0.204068,21213.0,21212.0,0.87275418]
[1673961156231,0.204068,21213.0,21212.0,0.40132318]
[1673961156472,0.204068,21213.0,21212.0,0.87275418]
[1673961156743,0.89576034,21215.0,21212.0,0.87275418]
[1673961156990,0.321331,21214.0,21213.0,0.08852542]
[1673961157241,0.321331,21214.0,21213.0,1.33131442]
[1673961157493,0.204068,21214.0,21213.0,1.33131442]
[1673961157745,0.89576034,21215.0,21213.0,1.33131442]
[1673961158004,0.48385569,21215.0,21214.0,0.11251392]
[1673961158250,0.48385569,21215.0,21214.0,1.35528592]
[1673961158496,0.48154014,21215.0,21214.0,1.35528592]
[1673961158745,0.80287114,21215.0,21214.0,1.35528592]
[1673961158986,0.32167114,21215.0,21214.0,1.35528592]
[1673961159229,0.00034014,21215.0,21214.0,1.35528592]
[1673961159474,0.00034014,21215.0,21214.0,1.46378592]
[1673961159965,0.00634014,21215.0,21214.0,1.37078592]
[1673961160693,0.00034014,21215.0,21214.0,1.36378592]
[1673961160999,0.00034014,21215.0,21214.0,1.45078592]
[1673961161973,0.00034014,21215.0,21214.0,1.338272]
[1673961163687,0.00034014,21215.0,21214.0,1.251272]
[1673961163927,0.01234014,21215.0,21214.0,1.255272]
[1673961164175,0.21994014,21215.0,21214.0,0.471386]
[1673961164427,0.54127114,21215.0,21214.0,0.484386]
[1673961164719,0.54127114,21215.0,21214.0,0.471386]
[1673961164969,0.55327114,21215.0,21214.0,0.475386]
[1673961165217,0.55327114,21215.0,21214.0,0.004]
[1673961165706,0.51993114,21215.0,21214.0,0.004]
[1673961165947,0.50793114,21215.0,21213.0,0.942777]
[1673961166205,0.00034014,21215.0,21214.0,0.477386]
[1673961166460,0.39707114,21215.0,21214.0,0.471386]
[1673961166701,0.40907114,21215.0,21214.0,0.478386]
[1673961166947,0.39707114,21215.0,21214.0,0.471386]
[1673961167462,0.40907114,21215.0,21214.0,0.478386]
[1673961167960,0.40907114,21215.0,21214.0,1.249772]
[1673961168195,0.40907114,21215.0,21214.0,0.949772]
[1673961168940,0.40907114,21215.0,21214.0,1.249772]
[1673961169180,0.01234014,21215.0,21214.0,1.249772]
[1673961169420,0.01234014,21215.0,21214.0,2.63696227]
[1673961169661,0.01234014,21215.0,21214.0,2.77707838]
[1673961170169,0.01234014,21215.0,21214.0,2.67707838]
[1673961170660,0.00034014,21215.0,21214.0,2.67007838]
[1673961170944,0.00034014,21215.0,21214.0,1.6744317]
[1673961170945,0.01134014,21215.0,21214.0,1.6744317]
[1673961171190,0.00034014,21215.0,21214.0,2.67075236]
[1673961171431,0.00134014,21215.0,21214.0,2.75275236]
[1673961171917,0.00134014,21215.0,21214.0,1.75246605]
[1673961172709,0.00134014,21215.0,21214.0,1.033272]
[1673961172952,0.43323114,21215.0,21214.0,1.024772]
[1673961175456,0.32267114,21215.0,21214.0,1.024772]
[1673961175702,0.32267114,21215.0,21214.0,1.324772]
[1673961177412,0.31913591,21215.0,21214.0,1.324772]
[1673961180201,0.00442523,21216.0,21214.0,1.324772]
[1673961180446,0.00442523,21216.0,21215.0,0.3]
[1673961180692,0.00442523,21216.0,21215.0,0.942728]
[1673961180961,0.32562923,21216.0,21215.0,0.942728]
[1673961181447,0.32562923,21216.0,21215.0,1.255728]
[1673961182237,0.00442523,21216.0,21215.0,1.52001039]
[1673961183557,0.00442523,21216.0,21215.0,1.62001039]
[1673961184071,0.00442523,21216.0,21215.0,1.52001039]
[1673961184330,0.00442523,21216.0,21215.0,1.52038856]
[1673961187698,0.00442523,21216.0,21215.0,1.66143172]
[1673961187953,0.00175154,21216.0,21215.0,2.66272184]
[1673961188206,0.00175154,21216.0,21215.0,2.86889989]
[1673961188466,0.00175154,21216.0,21215.0,3.34610158]
[1673961190232,0.00175154,21216.0,21215.0,3.33310158]
[1673961190487,0.00175154,21216.0,21215.0,3.42510158]
[1673961190739,0.00175154,21216.0,21215.0,3.33310158]
[1673961191008,0.00175154,21216.0,21215.0,3.42510158]
[1673961191325,0.00175154,21216.0,21215.0,3.33310158]
[1673961191520,0.00175154,21216.0,21215.0,3.42510158]
[1673961191772,0.00175154,21216.0,21215.0,3.33310158]
[1673961192029,0.00175154,21216.0,21215.0,3.42510158]
[1673961196080,0.00424209,21218.0,21216.0,0.36119215]
[1673961196331,0.00424209,21218.0,21217.0,3.86974986]
[1673961196853,0.00424209,21218.0,21217.0,3.48776915]
[1673961197103,0.00424209,21218.0,21217.0,3.41226915]
[1673961197387,0.00424209,21218.0,21217.0,3.48776915]
[1673961197644,0.00424209,21218.0,21217.0,3.88223413]
[1673961197910,0.00424209,21218.0,21217.0,4.08327347]
[1673961198142,0.00424209,21218.0,21217.0,3.88223413]
[1673961198397,0.00424209,21218.0,21217.0,3.57976915]
[1673961198947,0.00424209,21218.0,21217.0,3.15118569]
[1673961199142,0.00424209,21218.0,21217.0,3.05918569]
[1673961199390,0.00424209,21218.0,21217.0,3.51003194]
[1673961199636,0.00424209,21218.0,21217.0,3.05918569]
[1673961199898,0.00424209,21218.0,21217.0,2.75448169]
[1673961200663,0.00424209,21218.0,21217.0,2.36248169]
[1673961200929,0.00424209,21218.0,21217.0,2.45448169]
[1673961201180,0.00424209,21218.0,21217.0,2.36248169]
[1673961201467,0.00424209,21218.0,21217.0,2.45448169]
[1673961202235,0.00424209,21218.0,21217.0,2.75448169]
[1673961202480,0.00424209,21218.0,21217.0,2.27728]
[1673961207094,0.00424209,21218.0,21217.0,2.598484]
[1673961207351,0.00424209,21218.0,21217.0,2.27728]
[1673961207596,0.00424209,21218.0,21217.0,2.64123594]
[1673961207846,0.00424209,21218.0,21217.0,2.598484]
[1673961208095,0.00424209,21218.0,21217.0,2.27728]
[1673961209856,0.00424209,21218.0,21217.0,1.97728]
[1673961210110,0.32544609,21218.0,21217.0,1.97728]
[1673961210366,0.32544609,21218.0,21217.0,1.50596]
[1673961210835,0.32544609,21218.0,21217.0,1.41396]
[1673961211092,0.32644609,21218.0,21217.0,1.49896]
[1673961211895,0.32544609,21218.0,21217.0,1.71396]
[1673961212149,0.32644609,21218.0,21217.0,0.084]
[1673961213711,0.32644609,21218.0,21217.0,0.9579862]
[1673961213979,0.35062656,21218.0,21217.0,0.8739862]
[1673961214260,0.35062656,21218.0,21217.0,0.8859862]
[1673961214464,0.35062656,21218.0,21217.0,0.8739862]
[1673961214714,0.35162656,21218.0,21217.0,1.4293062]
[1673961214968,0.35062656,21218.0,21217.0,1.3453062]
[1673961215220,0.35062656,21218.0,21217.0,1.3573062]
[1673961215720,0.96066807,21218.0,21216.0,0.471326]
[1673961215966,0.96066807,21218.0,21217.0,0.084]
[1673961215967,0.56556407,21218.0,21217.0,0.084]
[1673961216224,0.96246807,21218.0,21217.0,0.084]
[1673961216477,0.96246807,21218.0,21217.0,0.55532]
[1673961216738,0.96246807,21218.0,21217.0,0.7051186]
[1673961217005,0.96135869,21218.0,21217.0,0.6211186]
[1673961217272,0.96135869,21218.0,21217.0,0.6331186]
[1673961218266,0.35051718,21218.0,21217.0,1.4044386]
[1673961220874,0.35051718,21218.0,21217.0,1.4044386]
[1673961222174,0.02931318,21218.0,21217.0,1.4044386]
[1673961222679,0.02931318,21218.0,21217.0,1.7634709]
[1673961222901,0.02931318,21218.0,21217.0,1.4044386]
[1673961223121,0.02931318,21218.0,21217.0,1.86284316]
[1673961224605,0.00910031,21218.0,21217.0,2.11646146]
[1673961224856,0.00910031,21218.0,21217.0,2.75123399]
[1673961225875,0.00910031,21218.0,21217.0,2.46911287]
[1673961226121,0.00910031,21218.0,21217.0,2.75123231]
[1673961226370,0.00910031,21218.0,21217.0,2.46911287]
[1673961227153,0.00910031,21218.0,21217.0,2.11646146]
[1673961228911,0.00910031,21218.0,21217.0,2.86624892]
[1673961229178,0.00910031,21218.0,21217.0,2.94164892]
[1673961229437,0.00251382,21218.0,21217.0,3.80419326]
[1673961229981,0.00251382,21218.0,21217.0,4.22739199]
[1673961230251,0.00251382,21218.0,21217.0,4.21539199]
[1673961230513,0.00251382,21218.0,21217.0,3.87880853]
[1673961230802,0.00251382,21218.0,21217.0,3.07026715]
[1673961232162,0.00251382,21218.0,21217.0,2.99486715]
[1673961232692,0.00251382,21218.0,21217.0,3.80272477]
[1673961232945,0.00251382,21218.0,21217.0,4.23130823]
[1673961233768,0.00251382,21218.0,21217.0,3.80272477]
[1673961234752,0.00251382,21218.0,21217.0,2.99486715]
[1673961234988,0.00251382,21218.0,21217.0,3.37951171]
[1673961235234,0.00251382,21218.0,21217.0,4.2312939]
[1673961235493,0.00251382,21218.0,21217.0,3.80271044]
[1673961235734,0.00251382,21218.0,21217.0,2.89486715]
[1673961235982,0.00251382,21218.0,21217.0,2.57366315]
[1673961236695,0.00251382,21218.0,21217.0,2.89486715]
[1673961237186,0.00251382,21218.0,21217.0,2.57366315]
[1673961237474,0.00251382,21218.0,21217.0,2.44914034]
[1673961237712,0.00251382,21218.0,21217.0,2.09646146]
[1673961238212,0.00251382,21218.0,21217.0,2.44914122]
[1673961240005,0.00251382,21218.0,21217.0,2.09646146]
[1673961241327,0.00251382,21218.0,21217.0,2.51966019]
[1673961242080,0.00070046,21218.0,21217.0,3.02394365]
[1673961242372,0.00070046,21218.0,21217.0,2.92194892]
[1673961242611,0.00070046,21218.0,21217.0,3.72979464]
[1673961242865,0.00070046,21218.0,21217.0,3.30663296]
[1673961243111,0.00070046,21218.0,21217.0,3.30621561]
[1673961243371,0.00070046,21218.0,21217.0,2.60074492]
[1673961243885,0.00070046,21218.0,21217.0,2.17216146]
[1673961244370,0.00070046,21218.0,21217.0,2.59532314]
[1673961244629,0.00222097,21219.0,21218.0,0.35884188]
[1673961244909,0.00222097,21219.0,21218.0,2.68782003]
[1673961245136,0.00222097,21219.0,21218.0,3.07208616]
[1673961245386,0.00222097,21219.0,21218.0,2.68782003]
[1673961245657,0.00222097,21219.0,21218.0,4.45128551]
[1673961245911,0.00222097,21219.0,21218.0,5.06787827]
[1673961246168,0.00222097,21219.0,21218.0,5.26962478]
[1673961246434,0.00222097,21219.0,21218.0,6.31573658]
[1673961246683,0.00492207,21221.0,21220.0,0.1]
[1673961246927,0.00492207,21221.0,21220.0,4.81988161]
[1673961247202,0.00492207,21221.0,21220.0,5.75776604]
[1673961248500,0.00492207,21221.0,21220.0,4.95049354]
[1673961248798,0.00492207,21221.0,21220.0,5.04349354]
[1673961248993,0.00492207,21221.0,21220.0,5.37291825]
[1673961249996,0.00492207,21221.0,21220.0,6.17950702]
[1673961250243,0.00492207,21221.0,21220.0,5.75650065]
[1673961250512,0.00492207,21221.0,21220.0,6.17916077]
[1673961251562,0.00492207,21221.0,21220.0,6.17900169]
[1673961252323,0.00266531,21222.0,21221.0,0.1]
[1673961252628,0.00639012,21223.0,21221.0,3.28695611]
[1673961252847,0.00639012,21223.0,21222.0,1.68539371]
[1673961252848,1.2e-07,21223.0,21222.0,1.68539371]
[1673961253118,1.2e-07,21223.0,21222.0,3.40853001]
[1673961253376,1.2e-07,21223.0,21222.0,3.94099433]
[1673961253632,1.2e-07,21223.0,21222.0,3.55832861]
[1673961253883,1.2e-07,21223.0,21222.0,4.15949954]
[1673961254220,1.2e-07,21223.0,21222.0,4.5266361]
[1673961254459,1.2e-07,21223.0,21222.0,4.4512361]
[1673961255451,1.2e-07,21223.0,21222.0,4.5432361]
[1673961255712,1.2e-07,21223.0,21222.0,4.70890601]
[1673961255962,1.2e-07,21223.0,21222.0,3.58604915]
[1673961256206,1.2e-07,21223.0,21222.0,3.33521187]
[1673961256546,1.2e-07,21223.0,21222.0,3.37598573]
[1673961256692,1.2e-07,21223.0,21222.0,3.16484964]
[1673961257177,1.2e-07,21223.0,21222.0,3.2840335]
[1673961257427,1.2e-07,21223.0,21222.0,3.42471743]
[1673961257661,1.2e-07,21223.0,21222.0,3.37284964]
[1673961258141,0.00100012,21223.0,21222.0,3.45784964]
[1673961258390,1.2e-07,21223.0,21222.0,3.72471743]
[1673961258637,0.00100012,21223.0,21222.0,3.45784964]
[1673961259625,0.00092219,21224.0,21223.0,0.1]
[1673961259889,0.00092219,21224.0,21223.0,1.69922633]
[1673961260126,0.00092219,21224.0,21223.0,1.99922633]
[1673961260385,0.00092219,21224.0,21223.0,1.74560803]
[1673961260625,0.00092219,21224.0,21223.0,1.85211402]
[1673961261131,0.00092219,21224.0,21223.0,1.34564354]
[1673961261370,0.00092219,21224.0,21223.0,0.99361274]
[1673961261616,0.00192219,21224.0,21223.0,1.22044657]
[1673961261867,0.00192219,21224.0,21223.0,1.67474992]
[1673961262107,0.00192219,21224.0,21223.0,1.43164354]
[1673961262366,0.00092219,21224.0,21223.0,1.64564354]
[1673961262630,0.10242219,21224.0,21223.0,1.92353608]
[1673961262938,0.17792219,21224.0,21223.0,0.557186]
[1673961263209,0.49912619,21224.0,21223.0,0.557186]
[1673961264018,0.49912619,21224.0,21223.0,0.086]
[1673961264717,0.49912619,21224.0,21223.0,0.557186]
[1673961265457,0.49912619,21224.0,21223.0,0.67410958]
[1673961265715,0.39862619,21224.0,21223.0,1.44529558]
[1673961267199,0.39862619,21224.0,21223.0,1.028372]
[1673961267705,0.39862619,21224.0,21223.0,0.557186]
[1673961270200,0.39862619,21224.0,21223.0,1.028372]
[1673961271191,0.39862619,21224.0,21223.0,1.328372]
[1673961271437,0.39862619,21224.0,21223.0,1.028372]
[1673961272693,0.39862619,21224.0,21223.0,1.328372]
[1673961273445,0.32312619,21224.0,21223.0,1.328372]
[1673961274179,0.32312619,21224.0,21223.0,1.323372]
[1673961274690,0.32312619,21224.0,21223.0,1.46420583]
[1673961274939,0.00192219,21224.0,21223.0,1.46420583]
[1673961275195,0.00192219,21224.0,21223.0,1.66524517]
[1673961275451,0.00192219,21224.0,21223.0,1.46420583]
[1673961275963,0.32312619,21224.0,21223.0,1.46420583]
[1673961276483,0.32312619,21224.0,21223.0,1.6754028]
[1673961276743,0.32312619,21224.0,21223.0,1.46420583]
[1673961277250,0.32312619,21224.0,21223.0,1.91841292]
[1673961277804,0.00192219,21224.0,21223.0,1.323372]
[1673961278548,0.32312619,21224.0,21223.0,1.46420583]
[1673961280377,0.32312619,21224.0,21223.0,1.323372]
[1673961281110,0.32312619,21224.0,21223.0,1.9182123]
[1673961281734,0.32312619,21224.0,21223.0,1.023372]
[1673961281982,0.32312619,21224.0,21223.0,0.552186]
[1673961286342,0.32312619,21224.0,21223.0,0.552186]
[1673961288243,0.32312619,21224.0,21223.0,1.023372]
[1673961288432,0.32312619,21224.0,21223.0,1.323372]
[1673961288687,0.32312619,21224.0,21223.0,1.46420583]
[1673961288939,0.32312619,21224.0,21223.0,1.6754028]
[1673961289199,0.32312619,21224.0,21223.0,1.46420583]
[1673961289461,0.32312619,21224.0,21223.0,1.323372]
[1673961290469,0.32312619,21224.0,21223.0,1.46420583]
[1673961290974,0.00192219,21224.0,21223.0,1.46420583]
[1673961291517,0.32312619,21224.0,21223.0,2.04339374]
[1673961291777,0.32312619,21224.0,21223.0,2.2112247]
[1673961291778,0.00192219,21224.0,21223.0,2.2112247]
[1673961292036,0.00544493,21225.0,21224.0,0.15331232]
[1673961292332,0.00544493,21225.0,21224.0,2.2131681]
[1673961292587,0.00044493,21225.0,21224.0,1.83414658]
[1673961292861,0.00044493,21225.0,21224.0,1.97521209]
[1673961293119,0.00144493,21225.0,21224.0,1.91614658]
[1673961293433,0.00144493,21225.0,21224.0,2.19827172]
[1673961294251,0.00144493,21225.0,21224.0,1.91614658]
[1673961295005,0.00144493,21225.0,21224.0,1.61873141]
[1673961295271,0.32264893,21225.0,21224.0,1.61873141]
[1673961295788,0.32264893,21225.0,21224.0,2.19054653]
[1673961296044,0.32264893,21225.0,21224.0,2.29595953]
[1673961296318,0.00144493,21225.0,21224.0,2.04966618]
[1673961296569,0.00144493,21225.0,21224.0,2.29602304]
[1673961296570,0.32264893,21225.0,21224.0,2.29602304]
[1673961297359,0.32264893,21225.0,21224.0,2.64789083]
[1673961297663,0.00144493,21225.0,21224.0,2.64789083]
[1673961297919,0.00144493,21225.0,21224.0,2.64801848]
[1673961298180,0.00144493,21225.0,21224.0,2.0138979]
[1673961298761,0.00144493,21225.0,21224.0,2.36670341]
[1673961299034,0.00144493,21225.0,21224.0,2.19043613]
[1673961299298,0.00144493,21225.0,21224.0,1.3187857]
[1673961299564,0.49884893,21225.0,21224.0,1.3187857]
[1673961299813,0.49884893,21225.0,21224.0,1.74936482]
[1673961300071,0.57374893,21225.0,21224.0,1.05931735]
[1673961300321,0.57374893,21225.0,21224.0,0.23531232]
[1673961302405,0.86194893,21225.0,21224.0,0.23531232]
[1673961302992,1.00196076,21225.0,21224.0,0.23531232]
[1673961303255,1.6831205,21225.0,21224.0,0.23531232]
[1673961303538,1.7821205,21225.0,21224.0,0.15331232]
[1673961303798,2.28274642,21225.0,21224.0,0.15931232]
[1673961304083,2.19602862,21225.0,21224.0,0.15331232]
[1673961304360,2.14799996,21225.0,21224.0,0.15931232]
[1673961304896,1.93786913,21225.0,21224.0,0.15931232]
[1673961305161,1.69931711,21225.0,21224.0,0.15931232]
[1673961305682,1.47218572,21225.0,21224.0,0.15331232]
[1673961305702,1.20108572,21225.0,21224.0,0.16031232]
[1673961305965,1.20108572,21225.0,21224.0,0.15331232]
[1673961305966,1.18408572,21225.0,21224.0,0.15331232]
[1673961306223,1.06099093,21225.0,21224.0,0.16031232]
[1673961307006,1.20108572,21225.0,21224.0,0.16031232]
[1673961307265,1.06099093,21225.0,21224.0,0.16031232]
[1673961307525,1.06099093,21225.0,21224.0,0.17634355]
[1673961307788,1.20108572,21225.0,21224.0,0.17634355]
[1673961308085,1.20108572,21225.0,21224.0,0.16031232]
[1673961309061,1.06099093,21225.0,21224.0,0.16031232]
[1673961310613,1.67222772,21225.0,21224.0,0.16031232]
[1673961310837,1.53213293,21225.0,21224.0,0.16031232]
[1673961311852,1.67222772,21225.0,21224.0,0.16031232]
[1673961312624,1.53213293,21225.0,21224.0,0.16031232]
[1673961312924,1.67222772,21225.0,21224.0,0.16031232]
[1673961313223,1.53213293,21225.0,21224.0,0.16031232]
[1673961313756,1.67222772,21225.0,21224.0,0.16031232]
[1673961314009,1.67222772,21225.0,21224.0,0.16022317]
[1673961314265,2.02257609,21225.0,21224.0,0.16022317]
[1673961314590,1.74226432,21225.0,21224.0,0.16022317]
[1673961315362,1.67215097,21225.0,21224.0,0.16022317]
[1673961315600,2.02257609,21225.0,21224.0,0.16022317]
[1673961315878,1.74226432,21225.0,21224.0,0.16022317]
[1673961316113,1.88226539,21225.0,21224.0,0.16022317]
[1673961317099,1.672134,21225.0,21224.0,0.16022317]
[1673961317579,1.596334,21225.0,21224.0,0.16022317]
[1673961317834,1.45633293,21225.0,21224.0,0.16022317]
[1673961318114,1.45633293,21225.0,21224.0,0.007]
[1673961319950,1.596334,21225.0,21224.0,0.007]
[1673961320197,1.53173293,21225.0,21224.0,0.007]
[1673961320439,1.671734,21225.0,21224.0,0.007]
[1673961320687,1.53173293,21225.0,21224.0,0.007]
[1673961321179,1.671734,21225.0,21224.0,0.007]
[1673961322694,1.53173293,21225.0,21224.0,0.007]
[1673961322947,1.06059093,21225.0,21224.0,0.007]
[1673961325439,1.53173293,21225.0,21224.0,0.007]
[1673961325945,1.38143293,21225.0,21224.0,0.007]
[1673961327663,1.521434,21225.0,21224.0,0.007]
[1673961327912,1.38143293,21225.0,21224.0,0.007]
[1673961332872,1.38100153,21225.0,21224.0,0.007]
[1673961333114,1.42323131,21225.0,21224.0,0.007]
[1673961333392,1.56323238,21225.0,21224.0,0.007]
[1673961335418,1.42323131,21225.0,21224.0,0.007]
[1673961335659,0.95208931,21225.0,21224.0,0.007]
[1673961336733,0.38044731,21225.0,21224.0,0.007]
[1673961336978,0.05924331,21225.0,21224.0,0.007]
[1673961337216,0.05924331,21225.0,21224.0,0.478164]
[1673961337463,0.26126331,21225.0,21224.0,0.478164]
[1673961337970,0.26126331,21225.0,21224.0,1.33598458]
[1673961338209,0.26126331,21225.0,21224.0,2.47884155]
[1673961338210,0.05924331,21225.0,21224.0,2.47884155]
[1673961338454,0.05924331,21225.0,21224.0,0.78912058]
[1673961338703,0.05924331,21225.0,21224.0,0.478164]
[1673961338950,0.05924331,21225.0,21224.0,0.007]